[Event "Gibraltar Junior Intl U16 2019"]
[Site "Caleta"]
[Date "2019.08.16"]
[Round "1.14"]
[White "Guerreiro, Jose Velho"]
[Black "Howell, Oliver W"]
[Result "0-1"]
[ECO "E61"]
[WhiteElo "1513"]
[BlackElo "1847"]
[Annotator "NA"]
[PlyCount "68"]
[EventDate "2019.08.16"]
[EventType "swiss"]
[EventCountry "GGB"]
[SourceTitle "playchess.com"]
[Source "ChessBase"]
[SourceQuality "1"]
[TimeControl "6600+10"]

1. d4 {[%emt 0:00:00]} Nf6 {[%emt 0:00:00]} 2. c4 {[%emt 0:00:40]} g6 {[%emt 0:00:06]} 3. Nc3 {[%emt 0:01:10]} Bg7 {[%emt 0:00:06]} 4. Nf3 {[%emt 0:00:36]} O-O {[%emt 0:00:10]} 5. Bf4 {[%emt 0:00:19]} d6 {[%emt 0:00:27]} 6. Qd2 {[%emt 0:02:45] E61: King's Indian: Early deviations for White, including Smyslov System} (6. e3 Nc6 7. h3 Nd7 8. Be2 h6 9. O-O e5 10. Bh2 Re8 11. Rc1 exd4 12. Nxd4 Nde5 13. Nf3 a5 14. Qd2 Nxf3+ 15. Bxf3 {0-1 (78) Georgiev,K (2623)-Melkumyan,H (2633) Riadh 2017}) 6... c5 {[%emt 0:01:28]} 7. d5 {[%emt 0:03:04]} Bf5 {[%emt 0:05:15]} 8. e3 $146 {[%emt 0:12:58]} ({Predecessor:} 8. Bh6 Ne4 9. Nxe4 Bxe4 10. h4 Bxf3 11. Bxg7 Kxg7 12. gxf3 h5 13. e4 a5 {0-1 (24) Domingues,J (1995)-De Lima,M (1800) Sao Sebastiao do Paraiso 2017}) 8... Re8 {[%emt 0:05:46]} 9. Bd3 {[%emt 0:03:18]} Bxd3 {[%emt 0:01:54]} 10. Qxd3 {[%emt 0:00:25]} Nbd7 {[%emt 0:01:27]} 11. O-O {[%emt 0:01:33]} Ng4 {[%emt 0:06:12]} 12. Rad1 {[%emt 0:07:57]} Nge5 {[%emt 0:02:08]} 13. Nxe5 {[%emt 0:01:21]} Nxe5 {[%emt 0:00:21]} 14. Bxe5 {[%emt 0:01:33]} Bxe5 {[%emt 0:00:13]} 15. Rfe1 {[%emt 0:11:48]} Qa5 {[%emt 0:01:46]} 16. a3 {[%emt 0:02:10]} a6 {[%emt 0:00:59]} 17. Re2 {[%emt 0:04:11]} Reb8 {[%emt 0:06:54]} 18. Na2 {[%emt 0:04:00]} b5 {[%emt 0:04:12]} 19. cxb5 {[%emt 0:04:53]} axb5 {[%emt 0:01:00]} 20. f4 {[%emt 0:01:38]} Bf6 {[%emt 0:02:00]} 21. e4 {[%emt 0:01:17]} Bd4+ {[%emt 0:01:33]} 22. Kf1 {[%emt 0:01:27]} b4 $15 {[%emt 0:02:12]} (22... Bg7 $19 23. Nc3 Bxc3 24. bxc3 Qxa3) 23. Nxb4 $1 {[%emt 0:05:00]} cxb4 {[%emt 0:00:21]} 24. Qxd4 {[%emt 0:00:27]} bxa3 {[%emt 0:00:19]} 25. bxa3 {[%emt 0:00:17]} Qxa3 {[%emt 0:00:39]} 26. e5 {[%emt 0:01:18]} Rb4 {[%emt 0:01:09]} 27. Qd2 {[%emt 0:01:16]} Raa4 {[%emt 0:02:15]} 28. Rf2 {[%emt 0:03:25]} Rd4 {[%emt 0:03:26]} 29. Qc1 {[%emt 0:10:31]} Qxc1 {[%emt 0:02:56]} 30. Rxc1 {[%emt 0:00:12]} Rxf4 {[%emt 0:00:56]} 31. exd6 {[%emt 0:00:20]} exd6 {[%emt 0:00:56]} 32. Rc8+ {[%emt 0:01:47]} Kg7 {[%emt 0:00:10]} 33. Rc6 {[%emt 0:00:56]} Ra1+ {[%emt 0:00:12]} 34. Ke2 {[%emt 0:00:28]} Ra2+ {[%emt 0:00:10]} 0-1

[Event "Gibraltar Junior Intl U16 2019"]
[Site "Caleta"]
[Date "2019.08.16"]
[Round "1.15"]
[White "Gutierrez Lupion, Daniel"]
[Black "Guilfanov, Raphael"]
[Result "1-0"]
[ECO "B23"]
[WhiteElo "1811"]
[BlackElo "1493"]
[Annotator "NA"]
[PlyCount "37"]
[EventDate "2019.08.16"]
[EventType "swiss"]
[EventCountry "GGB"]
[SourceTitle "playchess.com"]
[Source "ChessBase"]
[SourceQuality "1"]
[TimeControl "6600+10"]

1. e4 {[%emt 0:00:00]} c5 {[%emt 0:00:01]} 2. Nc3 {[%emt 0:00:10]} Nc6 {[%emt 0:00:22]} 3. f4 {[%emt 0:00:17]} e6 {[%emt 0:00:31]} 4. Nf3 {[%emt 0:00:25]} Nf6 {[%emt 0:00:41]} 5. Bb5 {[%emt 0:00:25]} Nh5 {[%emt 0:01:44]} 6. d3 {[%emt 0:00:42]} d5 {[%emt 0:13:04]} 7. O-O {[%emt 0:02:21]} d4 {[%emt 0:03:06]} 8. Ne5 {[%emt 0:02:31]} dxc3 {[%emt 0:03:59]} 9. Nxc6 {[%emt 0:00:24]} Qb6 {[%emt 0:04:35]} 10. Nxa7+ {[%emt 0:06:42]} Bd7 {[%emt 0:03:42]} 11. Bxd7+ {[%emt 0:00:26]} Kxd7 {[%emt 0:00:08]} 12. Qxh5 {[%emt 0:00:17]} cxb2 {[%emt 0:02:25]} 13. Qxf7+ {[%emt 0:01:11]} Be7 {[%emt 0:00:55]} 14. Rb1 {[%emt 0:02:36]} bxc1=Q {[%emt 0:05:38]} 15. Rxb6 {[%emt 0:00:37]} Qe3+ {[%emt 0:04:04]} 16. Kh1 {[%emt 0:00:27]} Rxa7 {[%emt 0:00:56]} 17. Qxe6+ {[%emt 0:00:54]} Ke8 {[%emt 0:00:48]} 18. Qc8+ {[%emt 0:01:07]} Bd8 {[%emt 0:00:12]} 19. Re6+ {[%emt 0:00:29]} 1-0

[Event "Gibraltar Junior Intl U16 2019"]
[Site "Caleta"]
[Date "2019.08.16"]
[Round "1.16"]
[White "Gough, Theo"]
[Black "Krivenko, Dion"]
[Result "0-1"]
[ECO "E94"]
[WhiteElo "1474"]
[BlackElo "1810"]
[Annotator "NA"]
[PlyCount "54"]
[EventDate "2019.08.16"]
[EventType "swiss"]
[EventCountry "GGB"]
[SourceTitle "playchess.com"]
[Source "ChessBase"]
[SourceQuality "1"]
[TimeControl "6600+10"]

1. d4 {[%emt 0:00:00]} Nf6 {[%emt 0:00:00]} 2. c4 {[%emt 0:00:05]} g6 {[%emt 0:00:07]} 3. Nc3 {[%emt 0:00:13]} Bg7 {[%emt 0:00:10]} 4. e4 {[%emt 0:00:32]} O-O {[%emt 0:00:09]} 5. Be2 {[%emt 0:01:50]} d6 {[%emt 0:00:09]} 6. Nf3 {[%emt 0:00:37]} Nbd7 {[%emt 0:00:14]} 7. O-O {[%emt 0:00:28]} e5 {[%emt 0:00:25]} 8. d5 {[%emt 0:01:30]} a5 {[%emt 0:01:06]} 9. a4 {[%emt 0:00:25]} Nc5 {[%emt 0:00:45]} 10. Qc2 {[%emt 0:02:45]} Ne8 {[%emt 0:07:26]} 11. Be3 {[%emt 0:05:36]} f5 {[%emt 0:02:49]} 12. Bxc5 {[%emt 0:06:50]} dxc5 {[%emt 0:00:37]} 13. exf5 {[%emt 0:01:19]} gxf5 {[%emt 0:00:53]} 14. Rfe1 {[%emt 0:09:13]} Nd6 {[%emt 0:05:55]} 15. Ra3 {[%emt 0:09:59]} Bd7 {[%emt 0:06:17]} 16. Nb5 {[%emt 0:04:17]} Bxb5 {[%emt 0:03:31]} 17. axb5 {[%emt 0:00:12]} b6 {[%emt 0:09:08]} 18. Bd1 {[%emt 0:06:07]} e4 {[%emt 0:03:51]} 19. Nd2 {[%emt 0:00:09]} Bd4 {[%emt 0:03:02]} 20. Rg3+ {[%emt 0:07:01]} Kh8 {[%emt 0:02:59]} 21. Bh5 {[%emt 0:24:59]} Qf6 {[%emt 0:08:17]} 22. b3 {[%emt 0:14:02]} Rg8 {[%emt 0:03:03]} 23. Rh3 {[%emt 0:01:17]} Qg5 {[%emt 0:02:16]} 24. g4 {[%emt 0:03:43]} Raf8 {[%emt 0:04:26]} 25. Kh1 {[%emt 0:02:25]} Bxf2 {[%emt 0:08:35]} 26. Rf1 {[%emt 0:01:39]} fxg4 {[%emt 0:03:48]} 27. Qb2+ {[%emt 0:00:16]} Bd4 {[%emt 0:00:46]} 0-1

[Event "Gibraltar Junior Intl U16 2019"]
[Site "Caleta"]
[Date "2019.08.16"]
[Round "1.17"]
[White "Lorente Serrano, Rosa Adela"]
[Black "Rayner, Hugo"]
[Result "1-0"]
[ECO "A01"]
[WhiteElo "1810"]
[BlackElo "1448"]
[Annotator "NA"]
[PlyCount "87"]
[EventDate "2019.08.16"]
[EventType "swiss"]
[EventCountry "GGB"]
[SourceTitle "playchess.com"]
[Source "ChessBase"]
[SourceQuality "1"]
[TimeControl "6600+10"]

1. b3 {[%emt 0:00:00]} e5 {[%emt 0:00:24]} 2. Bb2 {[%emt 0:00:06]} Nc6 {[%emt 0:00:11]} 3. c4 {[%emt 0:00:09]} Bc5 {[%emt 0:00:23]} 4. e3 {[%emt 0:00:17]} Nf6 {[%emt 0:00:48]} 5. a3 {[%emt 0:00:07]} a5 {[%emt 0:00:30]} 6. d3 {[%emt 0:00:27]} O-O {[%emt 0:00:30]} 7. Nd2 {[%emt 0:00:07]} d5 {[%emt 0:01:17]} 8. cxd5 {[%emt 0:00:47]} Qxd5 {[%emt 0:01:08]} 9. Ngf3 {[%emt 0:00:09]} Ba7 {[%emt 0:01:38]} 10. Qc2 {[%emt 0:03:25]} Bg4 {[%emt 0:03:13]} 11. Be2 {[%emt 0:00:20]} Rfe8 {[%emt 0:00:49]} 12. Ne4 {[%emt 0:03:40]} Nxe4 {[%emt 0:02:04]} 13. dxe4 {[%emt 0:02:53]} Qe6 {[%emt 0:02:24]} 14. h3 {[%emt 0:05:20]} Bxf3 {[%emt 0:02:43]} 15. Bxf3 {[%emt 0:00:08]} Rad8 {[%emt 0:00:29]} 16. O-O {[%emt 0:02:03]} Rd6 {[%emt 0:02:07]} 17. Be2 {[%emt 0:07:34]} Red8 {[%emt 0:00:52]} 18. Bc3 {[%emt 0:01:10]} Bb6 {[%emt 0:02:31]} 19. Bc4 {[%emt 0:02:45]} Qe8 {[%emt 0:04:09]} 20. Bd5 {[%emt 0:04:52]} Rb8 {[%emt 0:05:07]} 21. Qb2 {[%emt 0:01:34]} Kh8 {[%emt 0:01:37]} 22. Kh1 {[%emt 0:12:57]} f6 {[%emt 0:02:05]} 23. f4 {[%emt 0:03:40]} Bxe3 {[%emt 0:01:30]} 24. Bxc6 {[%emt 0:00:21]} Rxc6 {[%emt 0:04:35]} 25. fxe5 {[%emt 0:01:32]} fxe5 {[%emt 0:00:43]} 26. Bxe5 {[%emt 0:00:08]} Bh6 {[%emt 0:01:21]} 27. Rf5 {[%emt 0:00:31]} Kg8 {[%emt 0:03:48]} 28. Raf1 {[%emt 0:04:42]} Qd7 {[%emt 0:01:43]} 29. Qf2 {[%emt 0:00:48]} g6 {[%emt 0:01:04]} 30. Rf7 {[%emt 0:00:10]} Qe6 {[%emt 0:04:43]} 31. Qh4 {[%emt 0:13:31]} g5 {[%emt 0:01:54]} 32. Qg3 {[%emt 0:00:12]} Qxf7 {[%emt 0:01:44]} 33. Rxf7 {[%emt 0:00:05]} Kxf7 {[%emt 0:00:09]} 34. Qf3+ {[%emt 0:00:03]} Ke7 {[%emt 0:01:16]} 35. Qf5 {[%emt 0:03:19]} Rf8 {[%emt 0:03:30]} 36. Qxh7+ {[%emt 0:00:17]} Rf7 {[%emt 0:00:03]} 37. Qh8 {[%emt 0:00:11]} Rf8 {[%emt 0:01:09]} 38. Qh7+ {[%emt 0:00:02]} Rf7 {[%emt 0:00:08]} 39. Qg8 {[%emt 0:00:05]} Re6 {[%emt 0:01:16]} 40. Bd4 {[%emt 0:02:30]} Rxe4 {[%emt 0:05:18]} 41. Bc5+ {[%emt 0:00:41]} Kf6 {[%emt 0:01:26]} 42. Qd8+ {[%emt 0:00:06]} Kg7 {[%emt 0:03:57]} 43. Bd4+ {[%emt 0:04:34]} Kg6 {[%emt 0:00:10]} 44. Qg8+ {[%emt 0:00:07]} 1-0

[Event "Gibraltar Junior Intl U16 2019"]
[Site "Caleta"]
[Date "2019.08.16"]
[Round "1.18"]
[White "Garcia Calero, Jose Maria"]
[Black "Bartelt, Max Peter"]
[Result "0-1"]
[ECO "C00"]
[WhiteElo "1395"]
[BlackElo "1803"]
[Annotator "NA"]
[PlyCount "70"]
[EventDate "2019.08.16"]
[EventType "swiss"]
[EventCountry "GGB"]
[SourceTitle "playchess.com"]
[Source "ChessBase"]
[SourceQuality "1"]
[TimeControl "6600+10"]

1. e4 {[%emt 0:00:00]} e6 {[%emt 0:00:00]} 2. b3 {[%emt 0:00:03]} d5 {[%emt 0:00:31]} 3. Bb2 {[%emt 0:00:11]} Nf6 {[%emt 0:00:39]} 4. e5 {[%emt 0:01:24]} Nfd7 {[%emt 0:00:16]} 5. f4 {[%emt 0:08:43]} c5 {[%emt 0:00:17]} 6. Qg4 {[%emt 0:02:26]} Nc6 {[%emt 0:02:49]} 7. Nf3 {[%emt 0:00:28]} Nb4 {[%emt 0:05:39]} 8. Na3 {[%emt 0:02:05]} a6 {[%emt 0:05:12]} 9. Be2 {[%emt 0:03:26]} b5 {[%emt 0:04:31]} 10. h4 {[%emt 0:04:30]} Bb7 {[%emt 0:06:39]} 11. h5 {[%emt 0:23:08]} h6 {[%emt 0:01:26]} 12. f5 {[%emt 0:09:47]} Qe7 {[%emt 0:05:46]} 13. Nh4 {[%emt 0:04:54]} d4 {[%emt 0:10:00]} 14. fxe6 {[%emt 0:13:50]} Qxe6 {[%emt 0:04:52]} 15. Qxe6+ {[%emt 0:02:36]} fxe6 {[%emt 0:00:02]} 16. Ng6 {[%emt 0:01:56]} Rg8 {[%emt 0:00:17]} 17. O-O {[%emt 0:04:48]} O-O-O {[%emt 0:05:01]} 18. Bg4 {[%emt 0:06:32]} Re8 {[%emt 0:02:00]} 19. Rf7 {[%emt 0:06:06]} Be4 {[%emt 0:03:00]} 20. Raf1 {[%emt 0:04:31]} Bxg6 {[%emt 0:01:51]} 21. hxg6 {[%emt 0:00:09]} Nxe5 {[%emt 0:00:40]} 22. Bxe6+ {[%emt 0:02:15]} Rxe6 {[%emt 0:00:01]} 23. Rxf8+ {[%emt 0:00:10]} Rxf8 {[%emt 0:00:07]} 24. Rxf8+ {[%emt 0:00:05]} Kd7 {[%emt 0:00:35]} 25. c3 {[%emt 0:00:34]} Ke7 {[%emt 0:04:05]} 26. Ra8 {[%emt 0:00:17]} Nbd3 {[%emt 0:00:28]} 27. cxd4 {[%emt 0:01:06]} Ng4 {[%emt 0:00:02]} 28. Ra7+ {[%emt 0:00:57]} Kd8 {[%emt 0:00:41]} 29. Nc2 {[%emt 0:02:34]} Nxb2 {[%emt 0:00:17]} 30. Rxg7 {[%emt 0:00:17]} cxd4 {[%emt 0:00:29]} 31. Rg8+ {[%emt 0:02:14]} Ke7 {[%emt 0:00:15]} 32. g3 {[%emt 0:01:01]} Rd6 {[%emt 0:02:59]} 33. Kg2 {[%emt 0:00:58]} d3 {[%emt 0:00:41]} 34. Nb4 {[%emt 0:00:18]} a5 {[%emt 0:00:14]} 35. Nd5+ {[%emt 0:00:41]} Rxd5 {[%emt 0:00:39]} 0-1

[Event "Gibraltar Junior Intl U16 2019"]
[Site "Caleta"]
[Date "2019.08.16"]
[Round "1.19"]
[White "Gogia, Armaan"]
[Black "Popham, Sarah"]
[Result "1-0"]
[ECO "A00"]
[WhiteElo "1754"]
[BlackElo "1372"]
[Annotator "NA"]
[PlyCount "101"]
[EventDate "2019.08.16"]
[EventType "swiss"]
[EventCountry "GGB"]
[SourceTitle "playchess.com"]
[Source "ChessBase"]
[SourceQuality "1"]
[TimeControl "6600+10"]

1. Nc3 {[%emt 0:00:00]} e5 {[%emt 0:01:08]} 2. e3 {[%emt 0:00:00]} d5 {[%emt 0:00:35]} 3. Qh5 {[%emt 0:00:03]} Nc6 {[%emt 0:00:44]} 4. Bb5 {[%emt 0:00:03]} Qd6 {[%emt 0:04:37]} 5. d4 {[%emt 0:00:04]} exd4 {[%emt 0:07:31]} 6. exd4 {[%emt 0:00:02]} Nf6 {[%emt 0:01:15]} 7. Qe5+ {[%emt 0:00:01]} Qe6 {[%emt 0:01:48]} 8. Nf3 {[%emt 0:03:12]} Bd7 {[%emt 0:03:36]} 9. Qxe6+ {[%emt 0:02:50]} fxe6 {[%emt 0:02:34]} 10. Bf4 {[%emt 0:02:01]} O-O-O {[%emt 0:02:03]} 11. O-O-O {[%emt 0:02:53]} Bb4 {[%emt 0:03:46]} 12. Ne2 {[%emt 0:06:39]} Ne4 {[%emt 0:05:34]} 13. Rhf1 {[%emt 0:01:57]} Ne7 {[%emt 0:07:49]} 14. Bxd7+ {[%emt 0:00:51]} Kxd7 {[%emt 0:09:10]} 15. Ne5+ {[%emt 0:04:48]} Ke8 {[%emt 0:01:16]} 16. f3 {[%emt 0:02:18]} Nf6 {[%emt 0:02:34]} 17. Bg5 {[%emt 0:07:16]} Nd7 {[%emt 0:03:02]} 18. Nd3 {[%emt 0:05:35]} Ba5 {[%emt 0:01:11]} 19. Nef4 {[%emt 0:00:49]} h6 {[%emt 0:05:38]} 20. Bxe7 {[%emt 0:00:18]} Kxe7 {[%emt 0:00:23]} 21. Ng6+ {[%emt 0:00:15]} Kf7 {[%emt 0:00:29]} 22. Nxh8+ {[%emt 0:00:16]} Rxh8 {[%emt 0:00:06]} 23. c3 {[%emt 0:00:27]} c6 {[%emt 0:00:34]} 24. f4 {[%emt 0:00:09]} Bd8 {[%emt 0:01:41]} 25. Ne5+ {[%emt 0:00:31]} Nxe5 {[%emt 0:00:31]} 26. fxe5+ {[%emt 0:00:08]} Ke8 {[%emt 0:00:10]} 27. Rf3 {[%emt 0:00:09]} Bg5+ {[%emt 0:00:32]} 28. Kc2 {[%emt 0:00:07]} h5 {[%emt 0:00:42]} 29. Rdf1 {[%emt 0:00:08]} Be7 {[%emt 0:00:51]} 30. Kd3 {[%emt 0:00:49]} c5 {[%emt 0:00:49]} 31. dxc5 {[%emt 0:00:16]} Bxc5 {[%emt 0:00:12]} 32. Rf7 {[%emt 0:00:07]} b5 {[%emt 0:00:31]} 33. Rxg7 {[%emt 0:00:10]} h4 {[%emt 0:03:09]} 34. Rf6 {[%emt 0:00:46]} Bf8 {[%emt 0:01:44]} 35. Rxa7 {[%emt 0:00:11]} Rg8 {[%emt 0:04:27]} 36. Rxf8+ {[%emt 0:00:18]} Rxf8 {[%emt 0:00:59]} 37. Ra8+ {[%emt 0:00:06]} Ke7 {[%emt 0:00:09]} 38. Rxf8 {[%emt 0:00:04]} Kxf8 {[%emt 0:00:07]} 39. g4 {[%emt 0:00:11]} Kf7 {[%emt 0:00:07]} 40. h3 {[%emt 0:00:07]} Kg6 {[%emt 0:00:11]} 41. b3 {[%emt 0:00:08]} Kg5 {[%emt 0:00:15]} 42. a4 {[%emt 0:00:20]} bxa4 {[%emt 0:00:33]} 43. bxa4 {[%emt 0:00:05]} Kf4 {[%emt 0:00:06]} 44. Kd4 {[%emt 0:00:05]} Kg3 {[%emt 0:00:12]} 45. g5 {[%emt 0:00:05]} Kxh3 {[%emt 0:00:22]} 46. g6 {[%emt 0:00:03]} Kh2 {[%emt 0:00:49]} 47. g7 {[%emt 0:00:06]} h3 {[%emt 0:00:05]} 48. g8=Q {[%emt 0:00:21]} Kh1 {[%emt 0:00:07]} 49. Qg3 {[%emt 0:00:07]} h2 {[%emt 0:00:20]} 50. Qxh2+ {[%emt 0:00:07]} Kxh2 {[%emt 0:00:17]} 51. a5 {[%emt 0:00:04]} 1-0

[Event "Gibraltar Junior Intl U16 2019"]
[Site "Caleta"]
[Date "2019.08.16"]
[Round "1.20"]
[White "Gaspar Lopez, Rocio"]
[Black "Onslow, Teddy"]
[Result "0-1"]
[ECO "C05"]
[WhiteElo "1367"]
[BlackElo "1739"]
[Annotator "NA"]
[PlyCount "62"]
[EventDate "2019.08.16"]
[EventType "swiss"]
[EventCountry "GGB"]
[SourceTitle "playchess.com"]
[Source "ChessBase"]
[SourceQuality "1"]
[TimeControl "6600+10"]

1. e4 {[%emt 0:00:00]} e6 {[%emt 0:00:00]} 2. d4 {[%emt 0:00:00]} d5 {[%emt 0:00:06]} 3. Nd2 {[%emt 0:00:07]} Nf6 {[%emt 0:00:07]} 4. e5 {[%emt 0:00:07]} Nfd7 {[%emt 0:00:06]} 5. f4 {[%emt 0:00:06]} c5 {[%emt 0:00:21]} 6. Ngf3 {[%emt 0:00:11]} Nc6 {[%emt 0:00:32]} 7. Nb3 {[%emt 0:00:15]} Qb6 {[%emt 0:05:14]} 8. c3 {[%emt 0:00:49]} a5 {[%emt 0:09:06]} 9. a4 {[%emt 0:03:51]} cxd4 {[%emt 0:01:49]} 10. Nbxd4 {[%emt 0:03:17]} Bc5 {[%emt 0:02:23]} 11. Bb5 {[%emt 0:09:40]} O-O {[%emt 0:03:34]} 12. O-O {[%emt 0:06:09]} Na7 {[%emt 0:03:49]} 13. Be2 {[%emt 0:00:25]} f6 {[%emt 0:01:58]} 14. exf6 {[%emt 0:03:01]} Nxf6 {[%emt 0:00:14]} 15. Kh1 {[%emt 0:04:43]} Nc6 {[%emt 0:01:44]} 16. Nb3 {[%emt 0:32:28]} Bd6 {[%emt 0:02:56]} 17. Nbd4 {[%emt 0:01:11]} h6 {[%emt 0:07:12]} 18. Qb3 {[%emt 0:01:35]} Qd8 {[%emt 0:08:06]} 19. Nc2 {[%emt 0:09:12]} Ne4 {[%emt 0:02:43]} 20. g3 {[%emt 0:22:47]} Bc5 {[%emt 0:09:12]} 21. Nfd4 {[%emt 0:03:29]} e5 {[%emt 0:17:00]} 22. Nxc6 {[%emt 0:04:12]} bxc6 {[%emt 0:00:21]} 23. Bf3 {[%emt 0:05:09]} Nf2+ {[%emt 0:10:29]} 24. Kg2 {[%emt 0:00:03]} Bh3+ {[%emt 0:00:32]} 25. Kg1 {[%emt 0:00:33]} Bxf1 {[%emt 0:04:32]} 26. Kxf1 {[%emt 0:00:02]} Nd3 {[%emt 0:02:25]} 27. c4 {[%emt 0:00:43]} e4 {[%emt 0:03:34]} 28. Bh1 {[%emt 0:00:24]} Rb8 {[%emt 0:01:32]} 29. Qa2 {[%emt 0:00:03]} Ba7 {[%emt 0:01:59]} 30. Rb1 {[%emt 0:00:15]} Nxc1 {[%emt 0:00:12]} 31. Rxc1 {[%emt 0:00:02]} Qb6 {[%emt 0:00:25]} 0-1

[Event "Gibraltar Junior Intl U16 2019"]
[Site "Caleta"]
[Date "2019.08.16"]
[Round "1.21"]
[White "Volovich, Julia"]
[Black "Dhanwani, Aryan"]
[Result "1-0"]
[ECO "D52"]
[WhiteElo "1726"]
[BlackElo "1319"]
[Annotator "NA"]
[PlyCount "55"]
[EventDate "2019.08.16"]
[EventType "swiss"]
[EventCountry "GGB"]
[SourceTitle "playchess.com"]
[Source "ChessBase"]
[SourceQuality "1"]
[TimeControl "6600+10"]

1. d4 {[%emt 0:00:00]} c6 {[%emt 0:00:01]} 2. c4 {[%emt 0:00:00]} d5 {[%emt 0:00:06]} 3. Nf3 {[%emt 0:00:00]} Nf6 {[%emt 0:00:31]} 4. Nc3 {[%emt 0:00:06]} e6 {[%emt 0:00:46]} 5. Bg5 {[%emt 0:00:26]} Nbd7 {[%emt 0:01:04]} 6. e3 {[%emt 0:00:25]} Bd6 {[%emt 0:01:51]} 7. Qc2 {[%emt 0:07:17]} Qc7 {[%emt 0:02:28]} 8. c5 {[%emt 0:07:35]} Be7 {[%emt 0:00:36]} 9. Bf4 {[%emt 0:00:41]} Qa5 {[%emt 0:01:29]} 10. h3 {[%emt 0:15:20]} b5 {[%emt 0:01:51]} 11. Bd3 {[%emt 0:12:24]} b4 {[%emt 0:03:15]} 12. Ne2 {[%emt 0:01:28]} Ba6 {[%emt 0:07:20]} 13. O-O {[%emt 0:04:22]} Bd8 {[%emt 0:13:01]} 14. a3 {[%emt 0:05:29]} bxa3 {[%emt 0:03:58]} 15. Rxa3 {[%emt 0:01:43]} Bxd3 {[%emt 0:00:34]} 16. Qxd3 {[%emt 0:02:37]} Qb4 {[%emt 0:02:21]} 17. Rfa1 {[%emt 0:02:29]} Qxb2 {[%emt 0:08:19]} 18. Rb1 {[%emt 0:00:52]} Qxb1+ {[%emt 0:04:31]} 19. Qxb1 {[%emt 0:00:08]} O-O {[%emt 0:00:22]} 20. Bd6 {[%emt 0:00:40]} Re8 {[%emt 0:00:05]} 21. Qb7 {[%emt 0:00:16]} Be7 {[%emt 0:01:34]} 22. Bxe7 {[%emt 0:03:52]} Rab8 {[%emt 0:00:18]} 23. Qxc6 {[%emt 0:00:31]} Rxe7 {[%emt 0:00:47]} 24. Rxa7 {[%emt 0:00:56]} Ne5 {[%emt 0:06:03]} 25. Qd6 {[%emt 0:03:12]} Rb1+ {[%emt 0:01:39]} 26. Kh2 {[%emt 0:00:16]} Nxf3+ {[%emt 0:01:01]} 27. gxf3 {[%emt 0:00:06]} Rxa7 {[%emt 0:00:34]} 28. Qd8+ {[%emt 0:00:03]} 1-0

[Event "Gibraltar Junior Intl U16 2019"]
[Site "Caleta"]
[Date "2019.08.16"]
[Round "1.22"]
[White "Khan, Samir"]
[Black "Gutierrez Lupion, Nuria"]
[Result "0-1"]
[ECO "B42"]
[WhiteElo "1282"]
[BlackElo "1712"]
[Annotator "NA"]
[PlyCount "102"]
[EventDate "2019.08.16"]
[EventType "swiss"]
[EventCountry "GGB"]
[SourceTitle "playchess.com"]
[Source "ChessBase"]
[SourceQuality "1"]
[TimeControl "6600+10"]

1. e4 {[%emt 0:00:00]} c5 {[%emt 0:00:00]} 2. Nf3 {[%emt 0:00:00]} d6 {[%emt 0:00:05]} 3. d4 {[%emt 0:00:05]} cxd4 {[%emt 0:00:08]} 4. Nxd4 {[%emt 0:00:04]} Nf6 {[%emt 0:00:21]} 5. Nc3 {[%emt 0:00:06]} a6 {[%emt 0:00:07]} 6. Bd3 {[%emt 0:00:33]} e6 {[%emt 0:00:14]} 7. O-O {[%emt 0:00:45]} Be7 {[%emt 0:00:10]} 8. Re1 {[%emt 0:00:53]} O-O {[%emt 0:00:24]} 9. f3 {[%emt 0:00:53]} Qb6 {[%emt 0:01:34]} 10. Be3 {[%emt 0:00:21]} Qxb2 {[%emt 0:01:09]} 11. Nde2 {[%emt 0:01:27]} Qa3 {[%emt 0:03:34]} 12. Qd2 {[%emt 0:01:03]} Nbd7 {[%emt 0:02:54]} 13. Reb1 {[%emt 0:06:28]} Nc5 {[%emt 0:03:19]} 14. Bc4 {[%emt 0:05:55]} b5 {[%emt 0:07:52]} 15. Bb3 {[%emt 0:00:37]} Qa5 {[%emt 0:00:50]} 16. Nd5 {[%emt 0:01:44]} Qd8 {[%emt 0:00:40]} 17. Nxe7+ {[%emt 0:00:49]} Qxe7 {[%emt 0:00:09]} 18. Rd1 {[%emt 0:00:47]} Nxb3 {[%emt 0:05:53]} 19. cxb3 {[%emt 0:01:17]} d5 {[%emt 0:00:18]} 20. e5 {[%emt 0:03:50]} Nd7 {[%emt 0:01:28]} 21. Rdc1 {[%emt 0:04:53]} Nxe5 {[%emt 0:04:09]} 22. Bc5 {[%emt 0:00:21]} Qf6 {[%emt 0:01:01]} 23. Bxf8 {[%emt 0:00:30]} Kxf8 {[%emt 0:00:18]} 24. Rc7 {[%emt 0:01:49]} Nxf3+ {[%emt 0:01:15]} 25. gxf3 {[%emt 0:01:47]} Qxa1+ {[%emt 0:00:36]} 26. Kf2 {[%emt 0:00:55]} Qf6 {[%emt 0:02:40]} 27. Qb4+ {[%emt 0:00:51]} Kg8 {[%emt 0:05:28]} 28. Re7 {[%emt 0:00:34]} h6 {[%emt 0:07:50]} 29. Re8+ {[%emt 0:01:16]} Kh7 {[%emt 0:00:09]} 30. Qf8 {[%emt 0:00:28]} Qh4+ {[%emt 0:11:43]} 31. Kg2 {[%emt 0:00:21]} Qg5+ {[%emt 0:03:11]} 32. Kh1 {[%emt 0:01:30]} Qe5 {[%emt 0:08:51]} 33. Ng1 {[%emt 0:02:46]} Qc3 {[%emt 0:08:04]} 34. Qxf7 {[%emt 0:03:28]} a5 {[%emt 0:07:23]} 35. Qg8+ {[%emt 0:01:32]} Kg6 {[%emt 0:00:09]} 36. Rxe6+ {[%emt 0:00:18]} Bxe6 {[%emt 0:00:41]} 37. Qxa8 {[%emt 0:00:10]} d4 {[%emt 0:01:48]} 38. Qe8+ {[%emt 0:00:23]} Kf6 {[%emt 0:02:03]} 39. Qf8+ {[%emt 0:00:36]} Bf7 {[%emt 0:01:44]} 40. Qd6+ {[%emt 0:00:14]} Kf5 {[%emt 0:01:42]} 41. Qd7+ {[%emt 0:00:40]} Kg6 {[%emt 0:00:17]} 42. Qg4+ {[%emt 0:03:05]} Kh7 {[%emt 0:00:33]} 43. Ne2 {[%emt 0:00:13]} Qe1+ {[%emt 0:01:08]} 44. Ng1 {[%emt 0:00:19]} d3 {[%emt 0:00:48]} 45. Kg2 {[%emt 0:08:08]} d2 {[%emt 0:02:25]} 46. Nh3 {[%emt 0:00:08]} d1=Q {[%emt 0:04:18]} 47. Ng5+ {[%emt 0:00:14]} hxg5 {[%emt 0:00:18]} 48. Qf5+ {[%emt 0:01:11]} Bg6 {[%emt 0:00:22]} 49. Qh3+ {[%emt 0:00:19]} Qh4 {[%emt 0:00:03]} 50. Qe6 {[%emt 0:00:46]} Qd2+ {[%emt 0:00:16]} 51. Kg1 {[%emt 0:01:15]} Qdf2+ {[%emt 0:00:12]} 0-1